bitfinex/quotes_BTCUSD_20250408
["timestamp","ask_amount","ask_price","bid_price","bid_amount"]
[1744091291588,0.00046222,79766.0,79765.0,0.7396607]
[1744091291873,0.00046222,79766.0,79765.0,0.7356607]
[1744091292112,0.00046222,79766.0,79765.0,1.1470607]
[1744091292329,0.00046222,79766.0,79765.0,1.1540607]
[1744091292575,0.00046222,79766.0,79765.0,1.1630607]
[1744091293550,0.00046222,79766.0,79765.0,0.8997887]
[1744091294115,0.00046222,79766.0,79765.0,0.8927887]
[1744091294319,0.00046222,79766.0,79765.0,0.9017887]
[1744091295289,0.00046222,79766.0,79765.0,0.9143247]
[1744091309802,0.00046222,79766.0,79765.0,0.4999247]
[1744091319044,0.00046222,79766.0,79765.0,0.4873887]
[1744091319371,0.26373122,79766.0,79765.0,0.018]
[1744091319714,0.36273122,79766.0,79765.0,0.018]
[1744091320124,0.49211992,79766.0,79765.0,0.018]
[1744091320501,0.60986065,79766.0,79765.0,0.018]
[1744091320639,0.60986065,79766.0,79765.0,0.009]
[1744091321057,0.60986065,79766.0,79765.0,0.01]
[1744091321257,0.60986065,79766.0,79731.0,0.263384]
[1744091321258,0.012541,79737.0,79731.0,0.263384]
[1744091321461,0.01254,79740.0,79735.0,0.012541]
[1744091321681,0.01254,79740.0,79736.0,0.1293887]
[1744091322262,0.01254,79743.0,79736.0,0.1293887]
[1744091322493,0.01254,79743.0,79736.0,0.12980902]
[1744091322928,0.263332,79747.0,79740.0,0.250815]
[1744091323101,0.012539,79746.0,79740.0,0.250815]
[1744091323303,0.012539,79747.0,79741.0,0.01254]
[1744091323532,0.263335,79746.0,79741.0,0.01254]
[1744091323729,0.01254,79743.0,79738.0,0.012541]
[1744091323933,0.01254,79742.0,79737.0,0.250824]
[1744091324255,0.263349,79742.0,79740.0,0.009]
[1744091324605,0.01254,79741.0,79740.0,0.009]
[1744091324814,0.01254,79740.0,79736.0,0.13880902]
[1744091325015,0.01254,79743.0,79738.0,0.012541]
[1744091325219,0.01254,79743.0,79740.0,0.009]
[1744091325423,0.03575093,79743.0,79740.0,0.009]
[1744091325622,0.03575093,79743.0,79738.0,0.012541]
[1744091325863,0.001,79741.0,79740.0,0.009]
[1744091326245,0.03575093,79743.0,79738.0,0.012541]
[1744091326462,0.01354,79743.0,79740.0,0.004]
[1744091326829,0.01919952,79744.0,79738.0,0.012541]
[1744091327026,0.263342,79744.0,79738.0,0.012541]
[1744091327440,0.263342,79744.0,79740.0,0.009]
[1744091327670,0.25077,79755.0,79746.0,0.012539]
[1744091327829,0.012539,79750.0,79743.0,0.01254]
[1744091328030,0.012539,79750.0,79744.0,0.01254]
[1744091328412,0.263314,79753.0,79746.0,0.250795]
[1744091328607,0.012538,79755.0,79749.0,0.012539]
[1744091328855,0.263312,79753.0,79747.0,0.250793]
[1744091329094,0.012538,79753.0,79749.0,0.250786]
[1744091329272,0.012538,79753.0,79748.0,0.012539]
[1744091329450,0.263318,79752.0,79746.0,0.263333]
[1744091329826,0.263318,79752.0,79747.0,0.012539]
[1744091330002,0.012538,79753.0,79748.0,0.263328]
[1744091330238,0.012538,79753.0,79748.0,0.012539]
[1744091330440,0.250786,79749.0,79747.0,0.1293887]
[1744091330710,0.012538,79753.0,79747.0,0.1293887]
[1744091330942,0.012538,79753.0,79747.0,0.3801817]
[1744091331348,0.012538,79753.0,79749.0,0.002]
[1744091331555,0.02318747,79753.0,79749.0,0.014539]
[1744091331730,0.02318747,79753.0,79752.0,0.012538]
[1744091332107,0.012536,79765.0,79752.0,0.012538]
[1744091332108,0.012537,79763.0,79756.0,0.012538]
[1744091332308,0.012537,79763.0,79757.0,0.263299]
[1744091332507,0.012537,79763.0,79758.0,0.012537]
[1744091333122,0.250745,79762.0,79758.0,0.012537]
[1744091333326,0.250752,79760.0,79756.0,0.012538]
[1744091333725,0.26996994,79760.0,79756.0,0.012538]
[1744091334061,0.26996994,79760.0,79755.0,0.250765]
[1744091334792,0.28250694,79760.0,79755.0,0.250765]
[1744091334992,0.28250694,79760.0,79755.0,0.263303]
[1744091335217,0.01921794,79760.0,79756.0,0.012538]
[1744091335459,0.002,79760.0,79759.0,0.263292]
[1744091336214,0.263275,79764.0,79759.0,0.263292]
[1744091336410,0.002,79760.0,79759.0,0.012537]
[1744091336640,0.002,79760.0,79759.0,0.1419257]
[1744091336847,0.0003362,79766.0,79765.0,0.263272]
[1744091337300,0.0003362,79766.0,79765.0,0.012536]
[1744091337932,0.00046222,79766.0,79765.0,0.263272]
[1744091339313,0.00046222,79766.0,79765.0,0.271272]
[1744091339518,0.00046222,79766.0,79765.0,0.4483607]
[1744091342549,0.00046222,79766.0,79765.0,0.1373887]
[1744091342757,0.00046222,79766.0,79765.0,0.008]
[1744091343027,0.00046222,79766.0,79765.0,0.020536]
[1744091345169,0.00046222,79766.0,79765.0,0.008]
[1744091345400,0.01299822,79766.0,79765.0,0.008]
[1744091345741,0.07254784,79766.0,79765.0,0.008]
[1744091345950,0.09575358,79766.0,79765.0,0.008]
[1744091346162,0.24127358,79766.0,79765.0,0.008]
[1744091346370,0.28767358,79766.0,79765.0,0.008]
[1744091346556,0.28767358,79766.0,79765.0,0.005]
[1744091346749,0.012539,79751.0,79743.0,0.34]
[1744091346957,0.012539,79749.0,79744.0,0.3927297]
[1744091347216,0.03574474,79749.0,79744.0,0.3927297]
[1744091347687,0.02320574,79748.0,79744.0,0.3927297]
[1744091348385,0.02320574,79748.0,79745.0,0.012539]
[1744091348888,0.02320574,79747.0,79745.0,0.012539]
[1744091349536,0.001,79748.0,79745.0,0.018539]
[1744091349837,0.001,79748.0,79745.0,0.027539]
[1744091350049,0.02320574,79747.0,79745.0,0.021539]
[1744091350288,0.02320574,79747.0,79745.0,0.012539]
[1744091350499,0.02320574,79747.0,79746.0,0.263335]
[1744091350713,0.001,79747.0,79746.0,0.263335]
[1744091350936,0.02421726,79747.0,79746.0,0.263335]
[1744091351548,0.001,79747.0,79746.0,0.263335]
[1744091351727,0.02321726,79752.0,79749.0,0.250786]
[1744091351925,0.02321726,79752.0,79748.0,0.263328]
[1744091352170,0.02321726,79751.0,79749.0,0.012539]
[1744091352373,0.02321726,79751.0,79750.0,0.250783]
[1744091352574,0.02321726,79751.0,79750.0,0.3927107]
[1744091354367,0.02321726,79751.0,79750.0,0.7327107]
[1744091354578,0.02321726,79762.0,79758.0,0.250757]
[1744091354950,0.02321726,79761.0,79758.0,0.250757]
[1744091355131,0.02321726,79761.0,79757.0,0.012538]
[1744091355333,0.012537,79759.0,79757.0,0.1293887]
[1744091355544,0.02321726,79758.0,79757.0,0.1293887]
[1744091356405,0.02321726,79758.0,79757.0,0.1323887]
[1744091356606,0.02321726,79758.0,79757.0,0.1343887]
[1744091357030,0.28651226,79758.0,79757.0,0.005]
[1744091357324,0.37032819,79758.0,79757.0,0.002]
[1744091357744,0.28651226,79758.0,79757.0,0.002]
[1744091358147,0.250767,79756.0,79750.0,0.352539]
[1744091358323,0.012538,79755.0,79750.0,0.352539]
[1744091358525,0.263308,79755.0,79750.0,0.352539]
[1744091358729,0.02321726,79754.0,79750.0,0.34]
[1744091359137,0.02321726,79753.0,79750.0,0.34]
[1744091359542,0.02321726,79753.0,79750.0,0.344]
[1744091359702,0.02321726,79752.0,79750.0,0.344]
[1744091359901,0.02321726,79752.0,79750.0,0.34]
[1744091360176,0.02321726,79751.0,79750.0,0.345]
[1744091360614,0.03575626,79751.0,79750.0,0.345]
[1744091360816,0.03575626,79751.0,79750.0,0.005]
[1744091361731,0.04055639,79753.0,79750.0,0.004]
[1744091361887,0.250777,79752.0,79750.0,0.003]
[1744091362090,0.263332,79747.0,79746.0,0.4144]
[1744091362491,0.250802,79744.0,79739.0,0.01254]
[1744091362748,0.012539,79745.0,79739.0,0.263358]
[1744091362949,0.012539,79747.0,79741.0,0.263352]
[1744091363163,0.16817816,79750.0,79745.0,0.012539]
[1744091363303,0.012539,79750.0,79744.0,0.263342]
[1744091363502,0.012539,79750.0,79746.0,0.002]
[1744091363900,0.250779,79752.0,79746.0,0.002]
[1744091364106,0.250783,79750.0,79746.0,0.002]
[1744091364673,0.250783,79750.0,79744.0,0.01254]
[1744091365780,0.263322,79750.0,79746.0,0.004]
[1744091366007,0.396286,79756.0,79748.0,0.012539]
[1744091366228,0.14552,79756.0,79752.0,0.012538]
[1744091366647,0.14552,79756.0,79755.0,0.250767]
[1744091366865,0.14552,79756.0,79754.0,0.012538]
[1744091367055,0.26329,79760.0,79754.0,0.012538]
[1744091368032,0.34906377,79765.0,79756.0,0.250764]
[1744091368245,0.34906377,79765.0,79755.0,0.012538]
[1744091368246,0.263284,79762.0,79755.0,0.012538]
[1744091368581,0.001,79760.0,79755.0,0.012538]
[1744091368787,0.012536,79764.0,79757.0,0.012538]
[1744091368999,0.012536,79764.0,79758.0,0.012537]
[1744091369864,0.001,79760.0,79758.0,0.012537]
[1744091370528,0.001,79760.0,79757.0,0.012538]
[1744091370730,0.001,79760.0,79755.0,0.263302]
[1744091370731,0.001,79760.0,79755.0,0.250764]
[1744091370933,0.263286,79761.0,79755.0,0.263302]
[1744091371562,0.012536,79764.0,79758.0,0.263292]
[1744091371970,0.250749,79761.0,79754.0,0.263308]
[1744091372175,0.012537,79758.0,79751.0,0.250777]
[1744091372371,0.012537,79758.0,79752.0,0.1419267]
[1744091372736,0.263298,79758.0,79755.0,0.001]
[1744091372974,0.250767,79755.0,79750.0,0.34]
[1744091373175,0.012536,79769.0,79760.0,0.263288]
[1744091373381,0.012536,79764.0,79758.0,0.012537]
[1744091373560,0.012536,79764.0,79755.0,0.012538]
[1744091373755,0.012536,79764.0,79756.0,0.1293887]
[1744091373961,0.02326316,79763.0,79756.0,0.1419267]
[1744091374303,0.02326316,79763.0,79756.0,0.3926897]
[1744091374304,0.02326316,79762.0,79756.0,0.3926897]
[1744091374716,0.012537,79759.0,79752.0,0.263312]
[1744091374918,0.250761,79757.0,79752.0,0.1419267]
[1744091375141,0.02326316,79756.0,79752.0,0.1419267]
[1744091375767,0.02326316,79755.0,79752.0,0.1449267]
[1744091375972,0.02326316,79755.0,79752.0,0.1469267]
[1744091376173,0.02326316,79754.0,79752.0,0.1469267]
[1744091376388,0.02326316,79754.0,79752.0,0.3947007]
[1744091376568,0.02326316,79754.0,79752.0,0.3987007]
[1744091376763,0.02326316,79754.0,79752.0,0.006]
[1744091376764,0.02326316,79753.0,79752.0,0.006]
[1744091377395,0.02326316,79753.0,79752.0,0.004]
[1744091377591,0.02326316,79753.0,79752.0,0.006]
[1744091377996,0.02326316,79753.0,79750.0,0.60332]
[1744091378198,0.02326316,79753.0,79752.0,0.009]
[1744091378818,0.02326316,79753.0,79752.0,0.004]
[1744091380027,0.02326316,79753.0,79752.0,0.01]
[1744091382898,0.02326316,79753.0,79752.0,0.022538]
[1744091383938,0.02326316,79753.0,79752.0,0.1519267]
[1744091387553,0.02326316,79753.0,79752.0,0.1987267]
[1744091387833,0.02326316,79753.0,79752.0,0.5387267]
[1744091388958,0.250726,79769.0,79763.0,0.012537]
[1744091389159,0.012536,79768.0,79763.0,0.012537]
[1744091389521,0.02326657,79765.0,79760.0,0.012537]
[1744091389969,0.02326657,79765.0,79762.0,0.263281]
[1744091390309,0.02326657,79764.0,79762.0,0.263281]
[1744091390517,0.02326657,79763.0,79762.0,0.263281]
[1744091391843,0.02326657,79763.0,79762.0,0.7326697]
[1744091392070,0.02326657,79763.0,79762.0,0.7336697]
[1744091392509,0.02426657,79763.0,79762.0,0.7336697]
[1744091392727,0.02326657,79763.0,79762.0,0.7326697]
[1744091393393,0.02326657,79763.0,79762.0,0.7794697]
[1744091393600,0.02326657,79763.0,79762.0,0.85690964]
[1744091393809,0.02326657,79763.0,79762.0,0.7794697]
[1744091394259,0.02326657,79763.0,79762.0,0.7824697]
[1744091394701,0.00046222,79766.0,79765.0,0.263272]
[1744091394888,0.00046222,79766.0,79765.0,0.3926607]
[1744091395087,0.02373329,79766.0,79765.0,0.3926607]
[1744091395314,0.02373329,79766.0,79765.0,0.7326607]
[1744091395507,0.00046222,79766.0,79765.0,0.7326607]
[1744091395698,0.00046222,79766.0,79765.0,0.4693887]
[1744091395899,0.00046222,79766.0,79765.0,0.4829247]
[1744091396310,0.00146222,79766.0,79765.0,0.4829247]
[1744091396520,0.00046222,79766.0,79765.0,0.91186555]
[1744091396928,0.00046222,79766.0,79765.0,0.91386555]
[1744091397266,0.00046222,79766.0,79765.0,0.91286555]
[1744091397466,0.00046222,79766.0,79765.0,0.91686555]
[1744091397753,0.00046222,79766.0,79765.0,0.9023247]
[1744091400680,0.00046222,79766.0,79765.0,0.8897887]
[1744091401459,0.01299822,79766.0,79765.0,0.006]
[1744091401660,0.05999822,79766.0,79765.0,0.006]
[1744091402066,0.08323698,79766.0,79765.0,0.006]
[1744091404104,0.02370098,79766.0,79765.0,0.006]
[1744091404317,0.02370098,79766.0,79765.0,0.2836642]
[1744091404519,0.02370098,79766.0,79765.0,0.4255889]
[1744091404722,0.02370098,79766.0,79765.0,0.7655889]
[1744091404916,0.00046222,79766.0,79765.0,0.5148529]
[1744091405169,0.00046222,79766.0,79765.0,0.4879247]
[1744091412782,0.02371153,79766.0,79765.0,0.4879247]
[1744091413244,5.3e-07,79766.0,79765.0,1.00986555]
[1744091413447,0.0003362,79770.0,79769.0,0.02707685]
[1744091413597,0.00039421,79770.0,79769.0,0.74969518]
[1744091413805,0.00039421,79770.0,79769.0,0.79478855]
[1744091414986,0.00011041,79772.0,79771.0,0.61779285]
[1744091415194,0.00011041,79772.0,79771.0,0.74718155]
[1744091416223,0.00111041,79772.0,79771.0,0.75418155]
[1744091417673,0.00111041,79772.0,79771.0,0.76318155]
[1744091418374,0.0003364,79773.0,79771.0,0.76318155]
[1744091418375,8.1e-07,79773.0,79772.0,0.36707585]
[1744091418593,8.1e-07,79773.0,79772.0,0.41467585]
[1744091418816,8.1e-07,79773.0,79772.0,0.54406455]
[1744091419663,8.1e-07,79773.0,79772.0,0.97846455]
[1744091420022,8.1e-07,79773.0,79772.0,0.99551789]
[1744091420613,8.1e-07,79773.0,79772.0,1.00451789]
[1744091421042,8.1e-07,79773.0,79772.0,0.99551789]
[1744091421479,8.1e-07,79773.0,79772.0,1.01351789]
[1744091421673,8.1e-07,79773.0,79772.0,1.00451789]
[1744091422106,8.1e-07,79773.0,79772.0,1.01351789]
[1744091429859,4e-07,79792.0,79791.0,0.61772685]
[1744091430068,4e-07,79792.0,79791.0,1.39807555]
[1744091430270,7.425e-05,79792.0,79791.0,1.39807555]
[1744091430472,4.5e-07,79796.0,79795.0,0.352532]
[1744091430619,8.5e-07,79809.0,79808.0,0.01253]
[1744091430964,7.469e-05,79809.0,79808.0,1.35232055]
[1744091431192,6.9e-07,79809.0,79808.0,1.41802055]
[1744091432216,6.9e-07,79809.0,79808.0,1.42702055]
[1744091432401,6.9e-07,79809.0,79808.0,1.42742893]
[1744091432593,0.094,79843.0,79838.0,0.603032]
[1744091432800,0.00442063,79839.0,79838.0,0.7324207]
[1744091435220,0.00442063,79839.0,79838.0,0.74192503]
[1744091435597,0.00431799,79839.0,79838.0,0.74192503]
[1744091436022,0.00431799,79839.0,79838.0,0.47889303]
[1744091436249,0.02910566,79839.0,79838.0,0.42495083]
[1744091436489,0.02910566,79839.0,79838.0,0.34]
[1744091436722,0.01658066,79839.0,79838.0,0.343]
[1744091438524,0.01658066,79839.0,79838.0,0.355525]
[1744091438691,0.00431799,79839.0,79838.0,0.355525]
[1744091438865,0.01658066,79839.0,79838.0,0.43296494]
[1744091439252,0.01658066,79839.0,79838.0,0.355525]
[1744091440146,0.01658066,79839.0,79838.0,0.593507]
[1744091440715,0.01658066,79839.0,79838.0,0.606032]
[1744091440915,0.01658066,79839.0,79838.0,0.343]
[1744091441120,0.12170566,79839.0,79838.0,0.003]
[1744091442605,0.25109436,79839.0,79838.0,0.003]
[1744091443207,0.105127,79823.0,79817.0,0.34]
[1744091443490,0.263089,79821.0,79817.0,0.34]
[1744091444377,0.01228437,79820.0,79817.0,0.34]
[1744091445016,0.01228437,79820.0,79817.0,0.002]
[1744091445152,0.01228437,79820.0,79817.0,0.005]
[1744091445609,0.01228437,79820.0,79817.0,0.008]
[1744091446293,0.01228437,79820.0,79819.0,0.34]
[1744091446576,0.0456,79823.0,79822.0,0.012527]
[1744091447478,0.0456,79823.0,79822.0,0.352527]
[1744091447678,0.0456,79823.0,79822.0,0.344]
[1744091448034,0.0456,79823.0,79822.0,0.345]
[1744091449795,0.06244659,79823.0,79822.0,0.345]
[1744091450898,0.0456,79823.0,79822.0,0.345]
[1744091451146,0.012526,79832.0,79826.0,0.250544]
[1744091451347,0.0456,79834.0,79831.0,0.012526]
[1744091451553,0.0456,79834.0,79833.0,0.012526]
[1744091451864,0.0456,79834.0,79833.0,0.0663893]
[1744091452632,0.06384299,79839.0,79833.0,0.3169083]
[1744091452874,0.31434899,79839.0,79833.0,0.3169083]
[1744091453075,0.02125403,79839.0,79836.0,0.012525]
[1744091453297,0.02125403,79839.0,79837.0,0.02357664]
[1744091454706,0.27176003,79839.0,79837.0,0.02357664]
[1744091454906,0.28428503,79839.0,79834.0,0.263044]
[1744091455405,0.03377903,79839.0,79834.0,0.263044]
[1744091456014,0.012525,79840.0,79834.0,0.263044]
[1744091456273,0.01265112,79840.0,79834.0,0.263044]
[1744091456585,0.012525,79839.0,79834.0,0.263044]
[1744091456784,0.012525,79839.0,79835.0,0.0538622]
[1744091457047,0.250507,79838.0,79835.0,0.0538622]
[1744091457618,0.012525,79839.0,79835.0,0.0538622]
[1744091459224,0.012525,79839.0,79834.0,0.250517]
[1744091459973,0.01661411,79840.0,79837.0,0.250508]
[1744091460363,0.01661411,79840.0,79839.0,0.250504]
[1744091460523,0.00012612,79840.0,79839.0,0.250504]
[1744091460729,0.0102955,79840.0,79839.0,0.250504]
[1744091461335,0.0102955,79840.0,79835.0,0.263041]
[1744091461584,0.0102955,79840.0,79836.0,0.1293887]
[1744091461929,0.0102955,79840.0,79838.0,0.263031]
[1744091462524,0.0102955,79840.0,79836.0,0.13867223]
[1744091463068,0.0102955,79840.0,79839.0,0.012525]
[1744091464106,0.00012612,79840.0,79839.0,0.1419137]
[1744091464507,0.00012612,79840.0,79839.0,0.4819137]
[1744091467426,0.00012612,79840.0,79839.0,0.4859137]
[1744091472334,0.25062712,79840.0,79839.0,0.344]
[1744091472562,0.06915386,79840.0,79839.0,0.004]
[1744091475443,0.11725386,79840.0,79839.0,0.004]
[1744091475947,0.012525,79834.0,79833.0,0.4144]
[1744091476124,0.02279354,79834.0,79833.0,0.4144]
[1744091476826,0.250548,79825.0,79820.0,0.34]
[1744091477026,0.012527,79822.0,79820.0,0.34]
[1744091477231,0.012528,79821.0,79820.0,0.34]
[1744091477437,0.04604752,79821.0,79820.0,0.34]
[1744091478039,0.03351952,79821.0,79819.0,0.34]
[1744091478254,0.03351952,79821.0,79820.0,0.259563]
[1744091478583,0.02331184,79821.0,79820.0,0.3924797]
[1744091478749,0.02331184,79821.0,79820.0,0.7866797]
[1744091478938,0.02331184,79821.0,79820.0,0.7414797]
[1744091479164,0.02331184,79821.0,79820.0,0.4909167]
[1744091479477,0.012527,79824.0,79821.0,0.34]
[1744091479637,0.250545,79826.0,79821.0,0.34]
[1744091479818,0.010203,79823.0,79821.0,0.34]
[1744091480018,0.02099185,79823.0,79821.0,0.34]
[1744091480219,0.010203,79822.0,79821.0,0.34]
[1744091480473,0.010203,79822.0,79820.0,0.018]
[1744091480637,0.0233202,79821.0,79820.0,0.018]
[1744091480971,0.03352788,79821.0,79820.0,0.009]
[1744091481507,0.03352788,79821.0,79820.0,0.599563]
[1744091481685,0.03352788,79821.0,79820.0,0.590563]
[1744091481826,0.0233202,79821.0,79820.0,0.599563]
[1744091482030,0.03353257,79821.0,79820.0,0.599563]
[1744091482487,0.03353257,79821.0,79820.0,0.67700294]
[1744091482707,0.0233202,79821.0,79820.0,0.7414797]
[1744091482909,0.04483922,79826.0,79822.0,0.250556]
[1744091483088,0.01019831,79825.0,79822.0,0.3924717]
[1744091483285,0.01019831,79825.0,79824.0,0.012527]
[1744091483469,0.263059,79830.0,79824.0,0.012527]
[1744091483669,0.01018893,79829.0,79825.0,0.250548]
[1744091484573,0.250538,79828.0,79822.0,0.1293887]
[1744091484703,0.01019831,79827.0,79824.0,0.001]
[1744091484908,0.01019831,79827.0,79824.0,0.263077]
[1744091485146,0.263059,79830.0,79825.0,0.002]
[1744091485378,0.01018424,79829.0,79825.0,0.002]
[1744091485578,0.01018424,79829.0,79824.0,0.263077]
[1744091485784,0.03113674,79829.0,79824.0,0.263077]
[1744091485929,0.01018424,79829.0,79824.0,0.263077]
[1744091486129,0.01018424,79829.0,79824.0,0.269077]
[1744091486604,0.01018424,79829.0,79824.0,0.263077]
[1744091486809,0.01018424,79829.0,79825.0,0.263072]
[1744091487077,0.01018424,79829.0,79824.0,0.25355]
[1744091487283,0.012526,79831.0,79825.0,0.012527]
[1744091487515,0.012526,79831.0,79826.0,0.250544]
[1744091487645,0.263052,79832.0,79826.0,0.250544]
[1744091487646,0.01013391,79830.0,79829.0,0.012526]
[1744091487852,0.01013391,79830.0,79829.0,0.1419147]
[1744091488077,0.250508,79838.0,79832.0,0.250524]
[1744091488254,0.012526,79831.0,79825.0,0.34]
[1744091488455,0.012526,79829.0,79823.0,0.012527]
[1744091488653,0.263062,79829.0,79825.0,0.34]
[1744091488905,0.0486,79832.0,79816.0,0.0093353]
[1744091488906,0.263098,79818.0,79816.0,0.0093353]
[1744091489113,0.250563,79820.0,79818.0,0.34]
[1744091489312,0.012528,79821.0,79818.0,0.4693887]
[1744091490097,0.26309,79821.0,79818.0,0.4693887]
[1744091490295,0.02328712,79820.0,79818.0,0.4693887]
[1744091490496,0.01016219,79819.0,79818.0,0.4693887]
[1744091490699,0.01016219,79819.0,79818.0,0.4763887]
[1744091491306,0.03344931,79819.0,79818.0,0.4763887]
[1744091491509,0.03344931,79819.0,79818.0,0.4743887]
[1744091491705,0.01016219,79819.0,79818.0,0.4773887]
[1744091491963,0.02328712,79821.0,79818.0,0.48681506]
[1744091492201,0.012527,79822.0,79818.0,0.48681506]
[1744091492202,0.03344931,79820.0,79818.0,0.48681506]
[1744091492638,0.03344931,79820.0,79818.0,0.48181506]
[1744091492837,0.01016219,79820.0,79818.0,0.48181506]
[1744091493024,0.02328712,79819.0,79818.0,0.48781506]
[1744091493194,0.02328712,79819.0,79818.0,0.48481506]
[1744091493404,0.033454,79819.0,79818.0,0.48781506]
[1744091493583,0.01016688,79819.0,79818.0,0.48781506]
[1744091493783,0.02328712,79821.0,79818.0,0.48181506]
[1744091494003,0.03344931,79820.0,79818.0,0.48181506]
[1744091494203,0.03344931,79820.0,79818.0,0.48481506]
[1744091494399,0.03344931,79820.0,79818.0,0.009]
[1744091494400,0.263094,79819.0,79818.0,0.009]
[1744091494625,0.27316231,79819.0,79818.0,0.009]
[1744091494782,0.27316231,79819.0,79818.0,0.006]
[1744091494994,0.29644943,79819.0,79818.0,0.009]
[1744091495423,0.29644943,79819.0,79818.0,0.003]
[1744091495620,0.34444943,79819.0,79818.0,0.008]
[1744091496408,0.29644943,79819.0,79818.0,0.003]
[1744091496635,0.29644943,79819.0,79818.0,0.006]
[1744091496834,0.03335543,79819.0,79818.0,0.003]
[1744091497010,0.03335543,79819.0,79815.0,0.012528]
[1744091497011,0.03335543,79819.0,79816.0,0.012528]
[1744091497211,0.03335543,79819.0,79815.0,0.263105]
[1744091497441,0.02328712,79818.0,79815.0,0.263105]
[1744091497775,0.00996941,79817.0,79815.0,0.263105]
[1744091497971,0.02328712,79816.0,79815.0,0.3924937]
[1744091498780,0.263074,79826.0,79819.0,0.263092]
[1744091499184,0.012527,79825.0,79819.0,0.26351263]
[1744091499376,0.27383812,79824.0,79819.0,0.26351263]
[1744091499602,0.02328712,79824.0,79822.0,0.263084]
[1744091499915,0.02328712,79824.0,79823.0,0.012527]
[1744091500232,0.02328712,79828.0,79827.0,0.603068]
[1744091500583,0.012525,79836.0,79830.0,0.250531]
[1744091500839,0.012525,79837.0,79832.0,0.250526]
[1744091501165,0.02328712,79835.0,79832.0,0.250526]
[1744091501322,0.02328712,79835.0,79834.0,0.263044]
[1744091501537,0.02328712,79835.0,79834.0,0.012525]
[1744091502261,0.02328712,79835.0,79832.0,0.3799147]
[1744091502468,0.02328712,79835.0,79832.0,0.40180978]
[1744091502637,0.02328712,79835.0,79833.0,0.012526]
[1744091502841,0.28402268,79840.0,79834.0,0.263044]
[1744091503254,0.02331888,79839.0,79834.0,0.267044]
[1744091503567,0.28402268,79840.0,79834.0,0.017525]
[1744091503767,0.012525,79839.0,79834.0,0.263043]
[1744091504153,0.012525,79839.0,79834.0,0.265043]
[1744091504824,0.012525,79839.0,79834.0,0.014525]
[1744091505445,0.012525,79839.0,79834.0,0.012525]
[1744091505756,0.263038,79836.0,79834.0,0.002]
[1744091505929,0.250519,79835.0,79834.0,0.002]
[1744091506329,0.26064052,79835.0,79834.0,0.002]
[1744091506526,0.27316552,79835.0,79834.0,0.002]
[1744091506732,0.27316552,79835.0,79832.0,0.13875778]
[1744091507048,0.27316552,79835.0,79834.0,0.004]
[1744091507412,0.27316552,79835.0,79834.0,0.001]
[1744091507635,0.263063,79829.0,79827.0,0.34]
[1744091507833,0.263063,79829.0,79822.0,0.352527]
[1744091508033,0.01012713,79828.0,79822.0,0.4819157]
[1744091508257,0.263063,79829.0,79822.0,0.4819157]
[1744091508587,0.012526,79830.0,79824.0,0.263078]
[1744091508722,0.0101412,79829.0,79824.0,0.263078]
[1744091509358,0.0101412,79829.0,79824.0,0.012527]
[1744091509755,0.012527,79823.0,79822.0,0.13882028]
[1744091509987,0.02268226,79823.0,79822.0,0.13882028]
[1744091510190,0.012527,79823.0,79822.0,0.13882028]
[1744091510342,0.263084,79822.0,79819.0,0.00042063]
[1744091510679,0.02268226,79823.0,79819.0,0.00042063]
[1744091510886,0.01016464,79821.0,79819.0,0.00042063]
[1744091511184,0.012527,79823.0,79822.0,0.007]
[1744091511998,0.060927,79823.0,79822.0,0.007]
[1744091512201,0.012528,79820.0,79819.0,0.00042063]
[1744091512405,0.263091,79820.0,79819.0,0.00042063]
[1744091512629,0.263091,79820.0,79819.0,0.00442063]
[1744091512829,0.263091,79820.0,79819.0,6.3e-07]
[1744091512830,0.5728977,79820.0,79819.0,6.3e-07]
[1744091513034,0.263134,79807.0,79806.0,0.0003358]
[1744091513805,0.4879227,79807.0,79806.0,8e-07]
[1744091514213,0.4879227,79807.0,79806.0,0.0010008]
[1744091515152,0.51119232,79807.0,79806.0,0.0010008]
[1744091515548,0.51119232,79807.0,79806.0,8e-07]
[1744091515956,0.51519232,79807.0,79806.0,8e-07]
[1744091516160,0.51519232,79807.0,79806.0,0.0010008]
[1744091516365,0.51119232,79807.0,79806.0,8e-07]
[1744091516743,0.51819232,79807.0,79806.0,0.0020008]
[1744091517582,0.51819232,79807.0,79806.0,0.00156127]
[1744091517583,0.4949227,79807.0,79806.0,0.00156127]
[1744091518399,0.6401627,79807.0,79806.0,0.00156127]
[1744091518590,0.66338418,79807.0,79806.0,0.00156127]
[1744091519895,0.66338418,79807.0,79806.0,2.7e-07]
[1744091520011,0.263186,79791.0,79788.0,0.0003358]
[1744091520215,0.408426,79791.0,79790.0,0.00040964]
[1744091520526,0.43164748,79791.0,79790.0,0.00040964]
[1744091520928,0.44140864,79791.0,79790.0,0.00040964]
[1744091521328,0.44240864,79791.0,79790.0,0.00040964]
[1744091522169,0.44240864,79791.0,79790.0,0.00140964]
[1744091522782,0.46342588,79791.0,79790.0,0.00140964]
[1744091525208,0.45089388,79791.0,79790.0,0.00140964]
[1744091525409,0.20023988,79791.0,79790.0,0.00140964]
[1744091525620,0.0317784,79791.0,79790.0,0.00140964]
[1744091526113,0.2824324,79791.0,79790.0,0.00140964]
[1744091526774,0.0317784,79791.0,79790.0,0.00140964]
[1744091527292,0.0443104,79791.0,79790.0,0.00140964]
[1744091527699,0.01076116,79791.0,79790.0,0.29241452]
[1744091527857,0.01076116,79791.0,79790.0,0.42180322]
[1744091528045,0.001,79791.0,79790.0,0.76180322]
[1744091528252,0.001,79791.0,79790.0,0.80910322]
[1744091528433,0.001,79791.0,79790.0,0.87314407]
[1744091529056,0.27150528,79813.0,79807.0,0.263133]
[1744091529258,0.00977236,79812.0,79807.0,0.263133]
[1744091529656,0.012531,79801.0,79797.0,0.34]
[1744091529861,0.02092028,79813.0,79797.0,0.34]
[1744091529862,0.01253,79805.0,79798.0,0.012531]
[1744091530636,0.250614,79804.0,79799.0,0.250629]
[1744091530835,0.00979815,79803.0,79799.0,0.250629]